fUSD/lending_fUSD_20250602
["ID","MTS","AMOUNT","RATE_DAILY","PERIOD"]
[363717557,1748842257004,-377.89925682,0.00019315,2]
[363717558,1748842257013,-420.0,0.00019315,2]
[363717559,1748842257023,-421.1,0.00019315,2]
[363717560,1748842257032,-235.2236694,0.00019315,2]
[363717561,1748842257041,-420.0,0.00019315,2]
[363717562,1748842257051,-420.0,0.00019315,2]
[363717563,1748842257060,-420.0,0.00019315,2]
[363717564,1748842257069,-420.0,0.00019315,2]
[363717565,1748842257078,-420.0,0.00019315,2]
[363717566,1748842257088,-420.0,0.00019315,2]
[363717567,1748842257097,-420.0,0.00019315,2]
[363717568,1748842257107,-420.0,0.00019315,2]
[363717569,1748842257116,-420.0,0.00019315,2]
[363717570,1748842257126,-420.0,0.00019315,2]
[363717571,1748842257136,-420.0,0.00019315,2]
[363717572,1748842257145,-247.57903538,0.00019315,2]
[363717573,1748842257155,-420.0,0.00019315,2]
[363717574,1748842257164,-151.0,0.00019315,2]
[363717575,1748842257175,-151.0,0.00019315,2]
[363717576,1748842257184,-420.0,0.00019315,2]
[363717577,1748842257194,-151.0,0.00019315,2]
[363717578,1748842257203,-180.85006672,0.00019315,2]
[363717579,1748842257212,-420.0,0.00019315,2]
[363717580,1748842257221,-555.66590223,0.00019315,2]
[363717581,1748842257231,-420.0,0.00019315,2]
[363717582,1748842257240,-420.0,0.00019315,2]
[363717583,1748842257250,-420.0,0.00019315,2]
[363717584,1748842257259,-151.0,0.00019315,2]
[363717585,1748842257268,-151.0,0.00019315,2]
[363717586,1748842257278,-420.0,0.00019315,2]
[363717587,1748842257287,-384.09584709,0.00019315,2]
[363717588,1748842257296,-2802.02,0.00019315,2]
[363717589,1748842257305,-420.0,0.00019315,2]
[363717590,1748842257315,-420.0,0.00019315,2]
[363717591,1748842257324,-854.991557,0.00019315,2]
[363717592,1748842257333,-420.0,0.00019315,2]
[363717593,1748842257342,-420.0,0.00019315,2]
[363717594,1748842257351,-420.0,0.00019315,2]
[363717595,1748842257361,-420.0,0.00019315,2]
[363717596,1748842257370,-854.991557,0.00019315,2]
[363717597,1748842257379,-447.64117962,0.00019315,2]
[363717598,1748842257388,-443.62,0.00019315,2]
[363717599,1748842257397,-151.0,0.00019315,2]
[363717600,1748842257407,-423.08146551,0.00019315,2]
[363717601,1748842257416,-168.28931106,0.00019315,2]
[363717602,1748842257425,-420.0,0.00019315,2]
[363717603,1748842257434,-420.0,0.00019315,2]
[363717604,1748842257444,-420.0,0.00019315,2]
[363717605,1748842257452,-251.48,0.00019315,2]
[363717606,1748842257461,-420.0,0.00019315,2]
[363717607,1748842257470,-420.0,0.00019315,2]
[363717608,1748842257480,-420.0,0.00019315,2]
[363717609,1748842257489,-420.0,0.00019315,2]
[363717610,1748842257498,-420.0,0.00019315,2]
[363717611,1748842257507,-151.0,0.00019315,2]
[363717612,1748842257518,-420.0,0.00019315,2]
[363717613,1748842257527,-151.0,0.00019315,2]
[363717614,1748842257537,-366.11,0.00019315,2]
[363717615,1748842257546,-420.0,0.00019315,2]
[363717616,1748842257557,-425.07514845,0.00019315,2]
[363717617,1748842257567,-420.0,0.00019315,2]
[363717618,1748842257576,-422.28619606,0.00019315,2]
[363717619,1748842257585,-248.49047882,0.00019315,2]
[363717620,1748842257594,-549.71,0.00019315,2]
[363717621,1748842257604,-420.0,0.00019315,2]
[363717622,1748842257614,-420.0,0.00019315,2]
[363717623,1748842257622,-241.59,0.00019315,2]
[363717624,1748842257631,-420.0,0.00019315,2]
[363717625,1748842257641,-420.0,0.00019315,2]
[363717626,1748842257650,-433.34961774,0.00019315,2]
[363717627,1748842257659,-296.97256751,0.00019315,2]
[363717628,1748842257669,-420.0,0.00019315,2]
[363717629,1748842257679,-420.0,0.00019315,2]
[363717630,1748842257688,-151.0,0.00019315,2]
[363717631,1748842257697,-420.0,0.00019315,2]
[363717632,1748842257707,-420.0,0.00019315,2]
[363717633,1748842257716,-415.75,0.00019315,2]
[363717634,1748842257725,-537.74,0.00019315,2]
[363717635,1748842257735,-918.26,0.00019315,2]
[363717636,1748842257744,-205.094756,0.00019315,2]
[363717637,1748842257754,-420.0,0.00019315,2]
[363717638,1748842257763,-420.0,0.00019315,2]
[363717639,1748842257772,-420.0,0.00019315,2]
[363717640,1748842257781,-512.27144273,0.00019315,2]
[363717641,1748842257791,-424.21997574,0.00019315,2]
[363717642,1748842257800,-305.69,0.00019315,2]
[363717643,1748842257810,-464.5061104,0.00019315,2]
[363717644,1748842257820,-823.97,0.00019315,2]
[363717645,1748842257830,-420.0,0.00019315,2]
[363717646,1748842257839,-420.0,0.00019315,2]
[363717647,1748842257849,-294.76038046,0.00019315,2]
[363717648,1748842257859,-324.74,0.00019315,2]
[363717649,1748842257870,-256.91524094,0.00019315,2]
[363717650,1748842257880,-420.0,0.00019315,2]
[363717651,1748842257889,-191.94393,0.00019315,2]
[363717652,1748842257899,-420.0,0.00019315,2]
[363717653,1748842257909,-420.0,0.00019315,2]
[363717654,1748842257919,-191.94393,0.00019315,2]
[363717655,1748842257928,-1016.97,0.00019315,2]
[363717656,1748842257938,-420.0,0.00019315,2]
[363717657,1748842257948,-420.0,0.00019315,2]
[363717658,1748842257958,-420.0,0.00019315,2]
[363717659,1748842257967,-420.0,0.00019315,2]
[363717660,1748842257976,-333.57,0.00019315,2]
[363717661,1748842257986,-420.0,0.00019315,2]
[363717662,1748842257995,-152.89649,0.00019315,2]
[363717663,1748842258005,-422.91184237,0.00019315,2]
[363717664,1748842258014,-191.94393,0.00019315,2]
[363717665,1748842258023,-386.61392231,0.00019315,2]
[363717666,1748842258033,-191.94393,0.00019315,2]
[363717667,1748842258043,-420.0,0.00019315,2]
[363717668,1748842258052,-420.0,0.00019315,2]
[363717669,1748842258062,-420.0,0.00019315,2]
[363717670,1748842258071,-456.14746703,0.00019315,2]
[363717671,1748842258081,-420.0,0.00019315,2]
[363717672,1748842258090,-245.79302363,0.00019315,2]
[363717673,1748842258099,-422.5538922,0.00019315,2]
[363717674,1748842258108,-190.01301444,0.00019315,2]
[363717675,1748842258118,-420.0,0.00019315,2]
[363717676,1748842258127,-420.0,0.00019315,2]
[363717677,1748842258138,-433.99,0.00019315,2]
[363717678,1748842258148,-420.0,0.00019315,2]
[363717679,1748842258157,-420.0,0.00019315,2]
[363717680,1748842258167,-420.0,0.00019315,2]
[363717681,1748842258176,-360.91716092,0.00019315,2]
[363717682,1748842258186,-420.0,0.00019315,2]
[363717683,1748842258195,-420.0,0.00019315,2]
[363717684,1748842258205,-420.0,0.00019315,2]
[363717685,1748842258215,-420.0,0.00019315,2]
[363717686,1748842258224,-420.0,0.00019315,2]
[363717687,1748842258233,-420.0,0.00019315,2]
[363717688,1748842258243,-420.0,0.00019315,2]
[363717689,1748842258252,-420.0,0.00019315,2]
[363717690,1748842258261,-420.0,0.00019315,2]
[363717691,1748842258270,-192.93,0.00019315,2]
[363717692,1748842258279,-420.0,0.00019315,2]
[363717693,1748842258289,-420.0,0.00019315,2]
[363717694,1748842258298,-420.0,0.00019315,2]
[363717695,1748842258306,-420.0,0.00019315,2]
[363717696,1748842258316,-538.48,0.00019315,2]
[363717697,1748842258325,-420.0,0.00019315,2]
[363717698,1748842258334,-151.0,0.00019315,2]
[363717699,1748842258343,-420.0,0.00019315,2]
[363717700,1748842258352,-155.569623,0.00019315,2]
[363717701,1748842258361,-1207.04291,0.00019315,2]
[363717702,1748842258370,-1207.04291,0.00019315,2]
[363717703,1748842258379,-420.0,0.00019315,2]
[363717704,1748842258389,-151.0,0.00019315,2]
[363717705,1748842258399,-420.0,0.00019315,2]
[363717706,1748842258407,-420.0,0.00019315,2]
[363717707,1748842258417,-381.22493055,0.00019315,2]
[363717708,1748842258426,-338.35324559,0.00019315,2]
[363717709,1748842258435,-420.0,0.00019315,2]
[363717710,1748842258443,-1207.04291,0.00019315,2]
[363717711,1748842258452,-1207.04291,0.00019315,2]
[363717712,1748842258461,-479.44,0.00019315,2]
[363717713,1748842258470,-364.48,0.00019315,2]
[363717714,1748842258480,-432.74911813,0.00019315,2]
[363717715,1748842258489,-420.0,0.00019315,2]
[363717716,1748842258498,-420.0,0.00019315,2]
[363717717,1748842258507,-420.0,0.00019315,2]
[363717718,1748842258519,-420.0,0.00019315,2]
[363717719,1748842258527,-420.0,0.00019315,2]
[363717720,1748842258537,-420.0,0.00019315,2]
[363717721,1748842258545,-420.0,0.00019315,2]
[363717722,1748842258555,-420.0,0.00019315,2]
[363717723,1748842258565,-608.98,0.00019315,2]
[363717724,1748842258574,-420.0,0.00019315,2]
[363717725,1748842258584,-420.0,0.00019315,2]
[363717726,1748842258593,-420.0,0.00019315,2]
[363717727,1748842258603,-334.55361497,0.00019315,2]
[363717728,1748842258613,-420.0,0.00019315,2]
[363717729,1748842258622,-420.0,0.00019315,2]
[363717730,1748842258631,-420.0,0.00019315,2]
[363717731,1748842258641,-420.0,0.00019315,2]
[363717732,1748842258650,-420.0,0.00019315,2]
[363717733,1748842258660,-165.03024976,0.00019315,2]
[363717734,1748842258669,-540.20194575,0.00019315,2]
[363717735,1748842258679,-320.87,0.00019315,2]
[363717736,1748842258688,-420.0,0.00019315,2]
[363717737,1748842258698,-275.65,0.00019315,2]
[363717738,1748842258707,-528.52033438,0.00019315,2]
[363717739,1748842258717,-746.51,0.00019315,2]
[363717740,1748842258726,-420.0,0.00019315,2]
[363717741,1748842258737,-420.0,0.00019315,2]
[363717742,1748842258746,-420.0,0.00019315,2]
[363717743,1748842258756,-420.0,0.00019315,2]
[363717744,1748842258765,-458.99077,0.00019315,2]
[363717745,1748842258775,-420.0,0.00019315,2]
[363717746,1748842258785,-151.0,0.00019315,2]
[363717747,1748842258795,-420.0,0.00019315,2]
[363717748,1748842258804,-420.0,0.00019315,2]
[363717749,1748842258814,-420.0,0.00019315,2]
[363717750,1748842258824,-458.99077,0.00019315,2]
[363717751,1748842258834,-420.0,0.00019315,2]
[363717752,1748842258844,-420.0,0.00019315,2]
[363717753,1748842258853,-420.0,0.00019315,2]
[363717754,1748842258862,-420.0,0.00019315,2]
[363717755,1748842258872,-1555.89,0.00019315,2]
[363717756,1748842258881,-420.0,0.00019315,2]
[363717757,1748842258891,-420.0,0.00019315,2]
[363717758,1748842258900,-420.0,0.00019315,2]
[363717759,1748842258910,-420.0,0.00019315,2]
[363717760,1748842258919,-420.0,0.00019315,2]
[363717761,1748842258928,-697.44,0.00019315,2]
[363717762,1748842258938,-420.0,0.00019315,2]
[363717763,1748842258947,-420.0,0.00019315,2]
[363717764,1748842258956,-6483.420928,0.00019315,2]
[363717765,1748842258966,-6483.420928,0.00019315,2]
[363717766,1748842258976,-420.0,0.00019315,2]
[363717767,1748842258986,-6483.420928,0.00019315,2]
[363717768,1748842258995,-420.0,0.00019315,2]
[363717769,1748842259005,-6483.420928,0.00019315,2]
[363717770,1748842259014,-420.0,0.00019315,2]
[363717771,1748842259024,-420.0,0.00019315,2]
[363717772,1748842259033,-420.0,0.00019315,2]
[363717773,1748842259043,-420.0,0.00019315,2]
[363717774,1748842259052,-158.22966057,0.00019315,2]
[363717775,1748842259062,-184.92629254,0.00019315,2]
[363717776,1748842259071,-420.0,0.00019315,2]
[363717777,1748842259081,-420.0,0.00019315,2]
[363717778,1748842259091,-420.0,0.00019315,2]
[363717779,1748842259101,-420.0,0.00019315,2]
[363717780,1748842259111,-540.36140526,0.00019315,2]
[363717781,1748842259122,-420.0,0.00019315,2]
[363717782,1748842259132,-420.0,0.00019315,2]
[363717783,1748842259142,-420.0,0.00019315,2]
[363717784,1748842259152,-420.0,0.00019315,2]
[363717785,1748842259162,-420.0,0.00019315,2]
[363717786,1748842259172,-150.79710376,0.00019315,2]
[363717787,1748842259182,-658.41,0.00019315,2]
[363717788,1748842259192,-389.54787904,0.00019315,2]
[363717789,1748842259202,-246.9477311,0.00019315,2]
[363717790,1748842259211,-420.0,0.00019315,2]
[363717791,1748842259221,-421.55454176,0.00019315,2]
[363717792,1748842259231,-377.18005902,0.00019315,2]
[363717793,1748842259240,-420.0,0.00019315,2]
[363717794,1748842259250,-420.0,0.00019315,2]
[363717795,1748842259259,-430.16,0.00019315,2]
[363717796,1748842259269,-428.61816983,0.00019315,2]
[363717797,1748842259278,-430.59638299,0.00019315,2]
[363717798,1748842259288,-420.0,0.00019315,2]
[363717799,1748842259298,-209.53663683,0.00019315,2]
[363717800,1748842259307,-420.0,0.00019315,2]
[363717801,1748842259318,-420.0,0.00019315,2]
[363717802,1748842259327,-420.0,0.00019315,2]
[363717803,1748842259337,-348.97891052,0.00019315,2]
[363717804,1748842259347,-4950.62603398,0.00019352,2]
[363717805,1748842259358,-151.0,0.00019352,2]
[363717806,1748842259368,-854.991557,0.00019352,2]
[363717807,1748842259379,-854.991557,0.00019352,2]
[363717808,1748842259388,-6219.78290916,0.00019352,2]
[363717809,1748842259399,-151.652471,0.00019352,2]
[363717810,1748842259409,-151.0,0.00019352,2]
[363717811,1748842259418,-458.99077,0.00019352,2]
[363717812,1748842259427,-151.0,0.00019352,2]
[363717813,1748842259437,-458.99077,0.00019352,2]
[363717814,1748842259447,-1023.30534118,0.00019442,2]
[363717815,1748842259457,-1006.10503061,0.00019442,2]
[363717816,1748842259467,-4950.62603398,0.00019443,2]
[363717817,1748842259476,-6219.78290916,0.00019443,2]
[363717818,1748842259487,-500.0,0.00019451,2]
[363717819,1748842259498,-500.0,0.00019451,2]
[363717820,1748842259508,-514.45555693,0.00019451,2]
[363717821,1748842259521,-500.0,0.00019451,2]
[363717822,1748842259531,-298.36216338,0.00019452,2]
[363717823,1748842259541,-223.251698,0.00019452,2]
[363717824,1748842259552,-18985.535901,0.00019452,2]
[363717825,1748842259562,-17006.566024,0.00019452,2]
[363717826,1748842259572,-759.386753,0.00019452,2]
[363717827,1748842259583,-551.871243,0.00019452,2]
[363717828,1748842259593,-487.16018424,0.00019452,2]
[363717829,1748842259603,-420.0,0.00019452,2]
[363717830,1748842259613,-420.0,0.00019452,2]
[363717831,1748842259623,-420.0,0.00019452,2]
[363717832,1748842259633,-185.19,0.00019452,2]
[363717833,1748842259643,-420.0,0.00019452,2]
[363717834,1748842259653,-374.81122587,0.00019452,2]
[363717835,1748842259662,-420.0,0.00019452,2]
[363717836,1748842259672,-420.0,0.00019452,2]
[363717837,1748842259682,-420.0,0.00019452,2]
[363717838,1748842259691,-420.0,0.00019452,2]
[363717839,1748842259702,-505.03,0.00019452,2]
[363717840,1748842259711,-424.18848088,0.00019452,2]
[363717841,1748842259721,-151.0,0.00019452,2]
[363717842,1748842259731,-420.0,0.00019452,2]
[363717843,1748842259742,-420.0,0.00019452,2]
[363717844,1748842259752,-151.46,0.00019452,2]
[363717845,1748842259762,-160.31,0.00019452,2]
[363717846,1748842259772,-420.0,0.00019452,2]
[363717847,1748842259782,-420.0,0.00019452,2]
[363717848,1748842259792,-467.2830764,0.00019452,2]
[363717849,1748842259802,-368.51,0.00019452,2]
[363717850,1748842259813,-420.0,0.00019452,2]
[363717851,1748842259822,-420.0,0.00019452,2]
[363717852,1748842259832,-388.39983805,0.00019452,2]
[363717853,1748842259841,-175.41996627,0.00019452,2]
[363717854,1748842259851,-226.73874485,0.00019452,2]
[363717855,1748842259862,-420.0,0.00019452,2]
[363717856,1748842259871,-151.0,0.00019452,2]
[363717857,1748842259882,-439.2264204,0.00019452,2]
[363717858,1748842259893,-412.73217895,0.00019452,2]
[363717859,1748842259903,-328.97372081,0.00019452,2]
[363717860,1748842259914,-420.0,0.00019452,2]
[363717861,1748842259923,-420.0,0.00019452,2]
[363717862,1748842259933,-420.0,0.00019452,2]
[363717863,1748842259943,-420.0,0.00019452,2]
[363717864,1748842259952,-420.0,0.00019452,2]
[363717865,1748842259962,-153.440641,0.00019452,2]
[363717866,1748842259971,-420.0,0.00019452,2]
[363717867,1748842259982,-151.0,0.00019452,2]
[363717868,1748842259991,-420.0,0.00019452,2]
[363717869,1748842260001,-420.0,0.00019452,2]
[363717870,1748842260011,-151.0,0.00019452,2]
[363717871,1748842260020,-167.19455181,0.00019452,2]
[363717872,1748842260030,-151.0,0.00019452,2]
[363717873,1748842260040,-420.0,0.00019452,2]
[363717874,1748842260050,-151.0,0.00019452,2]
[363717875,1748842260061,-475.55,0.00019452,2]
[363717876,1748842260071,-420.0,0.00019452,2]
[363717877,1748842260081,-324.06929304,0.00019452,2]
[363717878,1748842260090,-303.538726,0.00019452,2]
[363717879,1748842260100,-420.0,0.00019452,2]
[363717880,1748842260109,-303.538726,0.00019452,2]
[363717881,1748842260119,-420.0,0.00019452,2]
[363717882,1748842260129,-151.0,0.00019452,2]
[363717883,1748842260139,-151.0,0.00019452,2]
[363717884,1748842260149,-420.0,0.00019452,2]
[363717885,1748842260159,-420.0,0.00019452,2]
[363717886,1748842260169,-152.343485,0.00019452,2]
[363717887,1748842260179,-343.62929474,0.00019452,2]
[363717888,1748842260189,-379.28,0.00019452,2]
[363717889,1748842260199,-152.08,0.00019452,2]
[363717890,1748842260210,-151.0,0.00019452,2]
[363717891,1748842260221,-157.980437,0.00019452,2]
[363717892,1748842260231,-420.0,0.00019452,2]
[363717893,1748842260241,-420.0,0.00019452,2]
[363717894,1748842260251,-227.711105,0.00019452,2]
[363717895,1748842260261,-264.0399919,0.00019452,2]
[363717896,1748842260271,-329.62,0.00019452,2]
[363717897,1748842260280,-227.711105,0.00019452,2]
[363717898,1748842260290,-558.59335119,0.00019452,2]
[363717899,1748842260300,-151.0,0.00019452,2]
[363717900,1748842260310,-162.97998124,0.00019452,2]
[363717901,1748842260320,-466.54510977,0.00019452,2]
[363717902,1748842260330,-420.0,0.00019452,2]
[363717903,1748842260340,-420.0,0.00019452,2]
[363717904,1748842260350,-285.1,0.00019452,2]
[363717905,1748842260359,-420.0,0.00019452,2]
[363717906,1748842260369,-420.0,0.00019452,2]
[363717907,1748842260379,-313.96971276,0.00019452,2]
[363717908,1748842260389,-420.0,0.00019452,2]
[363717909,1748842260400,-490.7,0.00019452,2]
[363717910,1748842260410,-420.0,0.00019452,2]
[363717911,1748842260420,-420.0,0.00019452,2]
[363717912,1748842260430,-420.0,0.00019452,2]
[363717913,1748842260440,-562.64,0.00019452,2]
[363717914,1748842260450,-418.3703437,0.00019452,2]
[363717915,1748842260461,-151.0,0.00019452,2]
[363717916,1748842260471,-420.0,0.00019452,2]
[363717917,1748842260481,-420.0,0.00019452,2]
[363717918,1748842260492,-226.76,0.00019452,2]
[363717919,1748842260502,-633.92,0.00019452,2]
[363717920,1748842260515,-358.1,0.00019452,2]
[363717921,1748842260525,-811.01,0.00019452,2]
[363717922,1748842260535,-420.0,0.00019452,2]
[363717923,1748842260545,-420.0,0.00019452,2]
[363717924,1748842260556,-287.42,0.00019452,2]
[363717925,1748842260566,-420.0,0.00019452,2]
[363717926,1748842260577,-420.0,0.00019452,2]
[363717927,1748842260587,-571.2,0.00019452,2]
[363717928,1748842260599,-420.0,0.00019452,2]
[363717929,1748842260610,-421.1,0.00019452,2]
[363717930,1748842260621,-404.60924682,0.00019452,2]
[363717931,1748842260631,-231.29,0.00019452,2]
[363717932,1748842260641,-420.0,0.00019452,2]
[363717933,1748842260651,-512.04,0.00019452,2]
[363717934,1748842260661,-420.0,0.00019452,2]
[363717935,1748842260671,-322.51978989,0.00019452,2]
[363717936,1748842260681,-420.0,0.00019452,2]
[363717937,1748842260691,-151.0,0.00019452,2]
[363717938,1748842260701,-420.0,0.00019452,2]
[363717939,1748842260711,-151.0,0.00019452,2]
[363717940,1748842260721,-569.01,0.00019452,2]
[363717941,1748842260730,-416.28759167,0.00019452,2]
[363717942,1748842260742,-151.0,0.00019452,2]
[363717943,1748842260752,-2802.02,0.00019452,2]
[363717944,1748842260762,-296.55,0.00019452,2]
[363717945,1748842260772,-420.0,0.00019452,2]
[363717946,1748842260783,-854.991557,0.00019452,2]
[363717947,1748842260793,-420.0,0.00019452,2]
[363717948,1748842260803,-420.0,0.00019452,2]
[363717949,1748842260813,-445.48144666,0.00019452,2]
[363717950,1748842260823,-854.991557,0.00019452,2]
[363717951,1748842260833,-443.62,0.00019452,2]
[363717952,1748842260843,-151.0,0.00019452,2]
[363717953,1748842260852,-420.0,0.00019452,2]
[363717954,1748842260862,-420.0,0.00019452,2]
[363717955,1748842260872,-420.0,0.00019452,2]
[363717956,1748842260881,-420.0,0.00019452,2]
[363717957,1748842260891,-420.0,0.00019452,2]
[363717958,1748842260901,-420.0,0.00019452,2]
[363717959,1748842260911,-252.74,0.00019452,2]
[363717960,1748842260921,-406.0,0.00019452,2]
[363717961,1748842260931,-151.0,0.00019452,2]
[363717962,1748842260941,-420.0,0.00019452,2]
[363717963,1748842260951,-420.0,0.00019452,2]
[363717964,1748842260960,-549.71,0.00019452,2]
[363717965,1748842260971,-283.26918007,0.00019452,2]
[363717966,1748842260980,-420.0,0.00019452,2]
[363717967,1748842260992,-420.0,0.00019452,2]
[363717968,1748842261002,-420.0,0.00019452,2]
[363717969,1748842261012,-361.56,0.00019452,2]
[363717970,1748842261023,-420.0,0.00019452,2]
[363717971,1748842261033,-420.0,0.00019452,2]
[363717972,1748842261043,-918.26,0.00019452,2]
[363717973,1748842261054,-420.0,0.00019452,2]
[363717974,1748842261064,-420.0,0.00019452,2]
[363717975,1748842261074,-420.0,0.00019452,2]
[363717976,1748842261084,-823.97,0.00019452,2]
[363717977,1748842261095,-420.0,0.00019452,2]
[363717978,1748842261104,-420.0,0.00019452,2]
[363717979,1748842261114,-420.0,0.00019452,2]
[363717980,1748842261125,-280.91545613,0.00019452,2]
[363717981,1748842261135,-304.55418315,0.00019452,2]
[363717982,1748842261145,-191.94393,0.00019452,2]
[363717983,1748842261155,-1016.97,0.00019452,2]
[363717984,1748842261165,-420.0,0.00019452,2]
[363717985,1748842261175,-420.0,0.00019452,2]
[363717986,1748842261189,-420.0,0.00019452,2]
[363717987,1748842261199,-522.92,0.00019452,2]
[363717988,1748842261209,-191.94393,0.00019452,2]
[363717989,1748842261219,-473.37,0.00019452,2]
[363717990,1748842261229,-362.7416505,0.00019452,2]
[363717991,1748842261240,-420.0,0.00019452,2]
[363717992,1748842261250,-420.0,0.00019452,2]
[363717993,1748842261260,-420.0,0.00019452,2]
[363717994,1748842261270,-420.0,0.00019452,2]
[363717995,1748842261280,-420.0,0.00019452,2]
[363717996,1748842261290,-421.1,0.00019452,2]
[363717997,1748842261300,-420.0,0.00019452,2]
[363717998,1748842261310,-461.00999396,0.00019452,2]
[363717999,1748842261323,-420.0,0.00019452,2]
[363718000,1748842261333,-420.0,0.00019452,2]
[363718001,1748842261343,-420.0,0.00019452,2]
[363718002,1748842261354,-420.0,0.00019452,2]
[363718003,1748842261544,-420.0,0.00019452,2]
[363718004,1748842261555,-503.59,0.00019452,2]
[363718005,1748842261565,-420.0,0.00019452,2]
[363718006,1748842261575,-420.0,0.00019452,2]
[363718007,1748842261584,-420.0,0.00019452,2]
[363718008,1748842261595,-334.52,0.00019452,2]
[363718009,1748842261605,-420.0,0.00019452,2]
[363718010,1748842261614,-538.48,0.00019452,2]
[363718011,1748842261623,-360.93932469,0.00019452,2]
[363718012,1748842261633,-413.68715011,0.00019452,2]
[363718013,1748842261643,-1207.04291,0.00019452,2]
[363718014,1748842261652,-420.0,0.00019452,2]
[363718015,1748842261662,-151.0,0.00019452,2]
[363718016,1748842261672,-420.0,0.00019452,2]
[363718017,1748842261681,-420.0,0.00019452,2]
[363718018,1748842261691,-405.03,0.00019452,2]
[363718019,1748842261700,-1207.04291,0.00019452,2]
[363718020,1748842261709,-420.0,0.00019452,2]
[363718021,1748842261719,-420.0,0.00019452,2]
[363718022,1748842261729,-420.0,0.00019452,2]
[363718023,1748842261739,-420.0,0.00019452,2]
[363718024,1748842261749,-420.0,0.00019452,2]
[363718025,1748842261759,-368.8391928,0.00019452,2]
[363718026,1748842261768,-378.07,0.00019452,2]
[363718027,1748842261777,-420.0,0.00019452,2]
[363718028,1748842261787,-608.98,0.00019452,2]
[363718029,1748842261797,-420.0,0.00019452,2]
[363718030,1748842261806,-420.0,0.00019452,2]
[363718031,1748842261817,-420.0,0.00019452,2]
[363718032,1748842261827,-420.0,0.00019452,2]
[363718033,1748842261836,-420.0,0.00019452,2]
[363718034,1748842261847,-420.0,0.00019452,2]
[363718035,1748842261856,-420.0,0.00019452,2]
[363718036,1748842261866,-466.92141665,0.00019452,2]
[363718037,1748842261876,-420.0,0.00019452,2]
[363718038,1748842261886,-746.51,0.00019452,2]
[363718039,1748842261896,-191.25,0.00019452,2]
[363718040,1748842261906,-420.0,0.00019452,2]
[363718041,1748842261916,-420.0,0.00019452,2]
[363718042,1748842261926,-420.0,0.00019452,2]
[363718043,1748842261936,-420.0,0.00019452,2]
[363718044,1748842261946,-458.99077,0.00019452,2]
[363718045,1748842261957,-420.0,0.00019452,2]
[363718046,1748842261967,-151.0,0.00019452,2]
[363718047,1748842261977,-403.03794017,0.00019452,2]
[363718048,1748842261989,-420.0,0.00019452,2]
[363718049,1748842261999,-458.99077,0.00019452,2]
[363718050,1748842262009,-420.0,0.00019452,2]
[363718051,1748842262019,-420.0,0.00019452,2]
[363718052,1748842262029,-420.0,0.00019452,2]
[363718053,1748842262039,-420.0,0.00019452,2]
[363718054,1748842262048,-1555.89,0.00019452,2]
[363718055,1748842262058,-521.34659197,0.00019452,2]
[363718056,1748842262068,-533.61733309,0.00019452,2]